fUST/lending_fUST_20250713
["ID","MTS","AMOUNT","RATE_DAILY","PERIOD"]
[371547680,1752343851719,-460.0,0.00017808,2]
[371547681,1752343851730,-460.0,0.00017808,2]
[371547682,1752343851738,-460.0,0.00017808,2]
[371547683,1752343851747,-537.55,0.00017808,2]
[371547684,1752343851757,-900.21,0.00017808,2]
[371547685,1752343851767,-460.0,0.00017808,2]
[371547686,1752343851776,-460.0,0.00017808,2]
[371547687,1752343851785,-460.0,0.00017808,2]
[371547688,1752343851794,-460.0,0.00017808,2]
[371547689,1752343851804,-501.36560506,0.00017827,2]
[371547690,1752343851813,-158.0,0.00017827,2]
[371547691,1752343851822,-160.0,0.00017827,2]
[371547692,1752343851831,-500.0,0.00017847,2]
[371547693,1752343851843,-502.54304723,0.00017847,2]
[371547694,1752343851852,-502.93992605,0.00017847,2]
[371547695,1752343851863,-500.0,0.00017847,2]
[371547696,1752343851874,-500.0,0.00017847,2]
[371547697,1752343851884,-500.0,0.00017847,2]
[371547698,1752343851893,-500.0,0.00017847,2]
[371547699,1752343851902,-500.0,0.00017847,2]
[371547700,1752343851911,-500.0,0.00017847,2]
[371547701,1752343851922,-500.0,0.00017847,2]
[371547702,1752343851933,-500.0,0.00017847,2]
[371547703,1752343851943,-500.0,0.00017847,2]
[371547704,1752343851953,-500.0,0.00017847,2]
[371547705,1752343851962,-158.0,0.00017847,2]
[371547706,1752343851972,-500.0,0.00017847,2]
[371547707,1752343851983,-1242.42624994,0.000179,2]
[371547708,1752343851993,-509.34155705,0.0001808,2]
[371547709,1752343852002,-262.3693145,0.0001808,2]
[371547710,1752343852011,-460.0,0.00018081,2]
[371547711,1752343852021,-460.0,0.00018081,2]
[371547712,1752343852031,-460.0,0.00018081,2]
[371547713,1752343852040,-460.0,0.00018081,2]
[371547714,1752343852050,-839.23,0.00018081,2]
[371547715,1752343852060,-460.0,0.00018081,2]
[371547716,1752343852069,-460.0,0.00018081,2]
[371547717,1752343852078,-1342.89,0.00018081,2]
[371547718,1752343852087,-460.0,0.00018081,2]
[371547719,1752343852096,-719.25,0.00018081,2]
[371547720,1752343852105,-3308.24,0.00018081,2]
[371547721,1752343852115,-460.0,0.00018082,2]
[371547722,1752343852124,-636.13,0.00018082,2]
[371547723,1752343852133,-460.0,0.00018082,2]
[371547724,1752343852143,-460.0,0.00018082,2]
[371547725,1752343852152,-460.0,0.00018082,2]
[371547726,1752343852162,-460.0,0.00018082,2]
[371547727,1752343852171,-460.0,0.00018082,2]
[371547728,1752343852181,-460.0,0.00018082,2]
[371547729,1752343852191,-460.0,0.00018082,2]
[371547730,1752343852201,-460.0,0.00018082,2]
[371547731,1752343852210,-460.0,0.00018082,2]
[371547732,1752343852219,-460.0,0.00018082,2]
[371547733,1752343852230,-460.0,0.00018082,2]
[371547734,1752343852239,-460.0,0.00018082,2]
[371547735,1752343852247,-460.0,0.00018082,2]
[371547736,1752343852256,-460.0,0.00018082,2]
[371547737,1752343852266,-460.0,0.00018082,2]
[371547738,1752343852276,-460.0,0.00018082,2]
[371547739,1752343852286,-471.48,0.00018082,2]
[371547740,1752343852295,-460.0,0.00018082,2]
[371547741,1752343852423,-460.0,0.00018082,2]
[371547742,1752343852434,-460.0,0.00018082,2]
[371547743,1752343852443,-460.0,0.00018082,2]
[371547744,1752343852453,-460.0,0.00018082,2]
[371547745,1752343852462,-522.63704269,0.00018082,2]
[371547746,1752343852472,-463.2,0.00018082,2]
[371547747,1752343852483,-460.0,0.00018082,2]
[371547748,1752343852493,-460.0,0.00018082,2]
[371547749,1752343852503,-460.0,0.00018082,2]
[371547750,1752343852512,-460.0,0.00018082,2]
[371547751,1752343852522,-460.0,0.00018082,2]
[371547752,1752343852531,-460.0,0.00018082,2]
[371547753,1752343852540,-460.0,0.00018082,2]
[371547754,1752343852550,-460.0,0.00018082,2]
[371547755,1752343852559,-460.0,0.00018082,2]
[371547756,1752343852570,-672.33,0.00018082,2]
[371547757,1752343852580,-1996.11,0.00018082,2]
[371547758,1752343852590,-460.0,0.00018082,2]
[371547759,1752343852599,-460.0,0.00018082,2]
[371547760,1752343852609,-460.0,0.00018082,2]
[371547761,1752343852618,-460.0,0.00018082,2]
[371547762,1752343852627,-460.0,0.00018082,2]
[371547763,1752343852637,-817.88,0.00018082,2]
[371547764,1752343852647,-460.0,0.00018082,2]
[371547765,1752343852657,-1069.87,0.00018082,2]
[371547766,1752343852666,-460.0,0.00018082,2]
[371547767,1752343852675,-465.4,0.00018082,2]
[371547768,1752343852685,-460.0,0.00018082,2]
[371547769,1752343852694,-460.0,0.00018082,2]
[371547770,1752343852703,-1070.15,0.00018082,2]
[371547771,1752343852712,-460.0,0.00018082,2]
[371547772,1752343852722,-460.0,0.00018082,2]
[371547773,1752343852733,-460.0,0.00018082,2]
[371547774,1752343852743,-460.0,0.00018082,2]
[371547775,1752343852753,-644.92,0.00018082,2]
[371547776,1752343852763,-460.0,0.00018082,2]
[371547777,1752343852772,-460.0,0.00018082,2]
[371547778,1752343852781,-460.0,0.00018082,2]
[371547779,1752343852791,-1655.94,0.00018082,2]
[371547780,1752343852801,-460.0,0.00018082,2]
[371547781,1752343852810,-2017.27,0.00018082,2]
[371547782,1752343852819,-460.0,0.00018082,2]
[371547783,1752343852829,-460.0,0.00018082,2]
[371547784,1752343852839,-460.0,0.00018082,2]
[371547785,1752343852848,-492.69,0.00018082,2]
[371547786,1752343852858,-460.0,0.00018082,2]
[371547787,1752343852867,-460.0,0.00018082,2]
[371547788,1752343852877,-514.52,0.00018082,2]
[371547789,1752343852886,-460.0,0.00018082,2]
[371547790,1752343852896,-1338.44,0.00018082,2]
[371547791,1752343852906,-460.0,0.00018082,2]
[371547792,1752343852915,-460.0,0.00018082,2]
[371547793,1752343852925,-553.18,0.00018082,2]
[371547794,1752343852934,-460.0,0.00018082,2]
[371547795,1752343852943,-460.0,0.00018082,2]
[371547796,1752343852953,-460.0,0.00018082,2]
[371547797,1752343852962,-537.55,0.00018082,2]
[371547798,1752343852971,-900.21,0.00018082,2]
[371547799,1752343852982,-153.37,0.00018082,2]
[371547800,1752343852992,-460.0,0.00018082,2]
[371547801,1752343853001,-460.0,0.00018082,2]
[371547802,1752343853010,-1242.42624994,0.00018176,2]
[371547803,1752343853021,-160.0,0.00018227,2]
[371547804,1752343853030,-160.0,0.00018227,2]
[371547805,1752343853039,-160.0,0.00018227,2]
[371547806,1752343853049,-214.25614385,0.00018274,2]
[371547807,1752343853058,-215.38668925,0.00018274,2]
[371547808,1752343853067,-838.37930271,0.00018278,2]
[371547809,1752343853077,-409.92972845,0.00018355,2]
[371547810,1752343853086,-460.0,0.00018355,2]
[371547811,1752343853095,-460.0,0.00018355,2]
[371547812,1752343853105,-404.76,0.00018355,2]
[371547813,1752343853114,-839.23,0.00018355,2]
[371547814,1752343853123,-460.0,0.00018355,2]
[371547815,1752343853133,-460.0,0.00018355,2]
[371547816,1752343853142,-1342.89,0.00018355,2]
[371547817,1752343853151,-460.0,0.00018355,2]
[371547818,1752343853161,-719.25,0.00018355,2]
[371547819,1752343853170,-3308.24,0.00018355,2]
[371547820,1752343853180,-460.0,0.00018356,2]
[371547821,1752343853189,-636.13,0.00018356,2]
[371547822,1752343853198,-460.0,0.00018356,2]
[371547823,1752343853208,-460.0,0.00018356,2]
[371547824,1752343853218,-460.0,0.00018356,2]
[371547825,1752343853227,-460.0,0.00018356,2]
[371547826,1752343853237,-460.0,0.00018356,2]
[371547827,1752343853246,-460.0,0.00018356,2]
[371547828,1752343853255,-460.0,0.00018356,2]
[371547829,1752343853265,-460.0,0.00018356,2]
[371547830,1752343853275,-460.0,0.00018356,2]
[371547831,1752343853285,-500.08560201,0.00018356,2]
[371547832,1752343853295,-460.0,0.00018356,2]
[371547833,1752343853305,-460.0,0.00018356,2]
[371547834,1752343853314,-471.48,0.00018356,2]
[371547835,1752343853323,-460.0,0.00018356,2]
[371547836,1752343853333,-460.0,0.00018356,2]
[371547837,1752343853346,-460.0,0.00018356,2]
[371547838,1752343853356,-460.0,0.00018356,2]
[371547839,1752343853365,-460.0,0.00018356,2]
[371547840,1752343853375,-463.2,0.00018356,2]
[371547841,1752343853385,-460.0,0.00018356,2]
[371547842,1752343853395,-460.0,0.00018356,2]
[371547843,1752343853405,-460.0,0.00018356,2]
[371547844,1752343853415,-460.0,0.00018356,2]
[371547845,1752343853424,-559.24,0.00018356,2]
[371547846,1752343853434,-350.45015773,0.00018356,2]
[371547847,1752343853444,-460.0,0.00018356,2]
[371547848,1752343853453,-460.0,0.00018356,2]
[371547849,1752343853463,-672.33,0.00018356,2]
[371547850,1752343853473,-1996.11,0.00018356,2]
[371547851,1752343853484,-216.43374271,0.00018356,2]
[371547852,1752343853494,-460.0,0.00018356,2]
[371547853,1752343853504,-460.0,0.00018356,2]
[371547854,1752343853514,-460.0,0.00018356,2]
[371547855,1752343853523,-817.88,0.00018356,2]
[371547856,1752343853533,-460.0,0.00018356,2]
[371547857,1752343853542,-1069.87,0.00018356,2]
[371547858,1752343853552,-460.0,0.00018356,2]
[371547859,1752343853562,-460.0,0.00018356,2]
[371547860,1752343853571,-460.0,0.00018356,2]
[371547861,1752343853581,-1070.15,0.00018356,2]
[371547862,1752343853590,-460.0,0.00018356,2]
[371547863,1752343853600,-460.0,0.00018356,2]
[371547864,1752343853609,-460.0,0.00018356,2]
[371547865,1752343853619,-460.0,0.00018356,2]
[371547866,1752343853629,-644.92,0.00018356,2]
[371547867,1752343853640,-460.0,0.00018356,2]
[371547868,1752343853651,-460.0,0.00018356,2]
[371547869,1752343853662,-460.0,0.00018356,2]
[371547870,1752343853672,-1655.94,0.00018356,2]
[371547871,1752343853681,-460.0,0.00018356,2]
[371547872,1752343853690,-2017.27,0.00018356,2]
[371547873,1752343853700,-460.0,0.00018356,2]
[371547874,1752343853709,-460.0,0.00018356,2]
[371547875,1752343853720,-460.0,0.00018356,2]
[371547876,1752343853730,-492.69,0.00018356,2]
[371547877,1752343853740,-460.0,0.00018356,2]
[371547878,1752343853751,-460.0,0.00018356,2]
[371547879,1752343853760,-460.0,0.00018356,2]
[371547880,1752343853770,-1338.44,0.00018356,2]
[371547881,1752343853779,-460.0,0.00018356,2]
[371547882,1752343853789,-460.0,0.00018356,2]
[371547883,1752343853798,-460.0,0.00018356,2]
[371547884,1752343853808,-460.0,0.00018356,2]
[371547885,1752343853817,-537.55,0.00018356,2]
[371547886,1752343853827,-460.0,0.00018356,2]
[371547887,1752343853837,-900.21,0.00018356,2]
[371547888,1752343853846,-460.0,0.00018356,2]
[371547889,1752343853855,-460.0,0.00018356,2]
[371547890,1752343853865,-1000.0,0.00018395,2]
[371547891,1752343853875,-500.0,0.00018395,2]
[371547892,1752343853885,-501.9477108,0.00018395,2]
[371547893,1752343853894,-1000.0,0.00018395,2]
[371547894,1752343853904,-500.0,0.00018395,2]
[371547895,1752343853914,-1000.0,0.00018395,2]
[371547896,1752343853923,-1000.0,0.00018395,2]
[371547897,1752343853933,-528.44472399,0.00018421,2]
[371547898,1752343853942,-1242.42624994,0.00018452,2]
[371547899,1752343853951,-460.0,0.00018629,2]
[371547900,1752343853961,-460.0,0.00018629,2]
[371547901,1752343853970,-460.0,0.00018629,2]
[371547902,1752343853981,-839.23,0.00018629,2]
[371547903,1752343853991,-460.0,0.00018629,2]
[371547904,1752343854000,-460.0,0.00018629,2]
[371547905,1752343854009,-1342.89,0.00018629,2]
[371547906,1752343854018,-460.0,0.00018629,2]
[371547907,1752343854028,-719.25,0.00018629,2]
[371547908,1752343854037,-3308.24,0.00018629,2]
[371547909,1752343854046,-460.0,0.0001863,2]
[371547910,1752343854055,-636.13,0.0001863,2]
[371547911,1752343854065,-151.0,0.0001863,2]
[371547912,1752343854074,-460.0,0.0001863,2]
[371547913,1752343854084,-582.70012662,0.0001863,2]
[371547914,1752343854093,-460.0,0.0001863,2]
[371547915,1752343854102,-460.0,0.0001863,2]
[371547916,1752343854112,-179.07827658,0.0001863,2]
[371547917,1752343854121,-460.0,0.0001863,2]
[371547918,1752343854130,-460.0,0.0001863,2]
[371547919,1752343854139,-460.0,0.0001863,2]
[371547920,1752343854149,-460.0,0.0001863,2]
[371547921,1752343854158,-460.0,0.0001863,2]
[371547922,1752343854167,-460.0,0.0001863,2]
[371547923,1752343854177,-471.48,0.0001863,2]
[371547924,1752343854186,-565.37,0.0001863,2]
[371547925,1752343854195,-218.61,0.0001863,2]
[371547926,1752343854205,-524.06,0.0001863,2]
[371547927,1752343854214,-460.0,0.0001863,2]
[371547928,1752343854223,-463.2,0.0001863,2]
[371547929,1752343854233,-460.0,0.0001863,2]
[371547930,1752343854242,-460.0,0.0001863,2]
[371547931,1752343854252,-460.0,0.0001863,2]
[371547932,1752343854261,-472.26,0.0001863,2]
[371547933,1752343854270,-460.0,0.0001863,2]
[371547934,1752343854280,-672.33,0.0001863,2]
[371547935,1752343854289,-1996.11,0.0001863,2]
[371547936,1752343854300,-460.0,0.0001863,2]
[371547937,1752343854309,-460.0,0.0001863,2]
[371547938,1752343854319,-817.88,0.0001863,2]
[371547939,1752343854329,-460.0,0.0001863,2]
[371547940,1752343854341,-1069.87,0.0001863,2]
[371547941,1752343854351,-460.0,0.0001863,2]
[371547942,1752343854360,-460.0,0.0001863,2]
[371547943,1752343854370,-460.0,0.0001863,2]
[371547944,1752343854379,-1070.15,0.0001863,2]
[371547945,1752343854390,-460.0,0.0001863,2]
[371547946,1752343854400,-460.0,0.0001863,2]
[371547947,1752343854410,-460.0,0.0001863,2]
[371547948,1752343854420,-460.0,0.0001863,2]
[371547949,1752343854430,-644.92,0.0001863,2]
[371547950,1752343854439,-460.0,0.0001863,2]
[371547951,1752343854449,-460.0,0.0001863,2]
[371547952,1752343854459,-460.0,0.0001863,2]
[371547953,1752343854469,-1655.94,0.0001863,2]
[371547954,1752343854479,-460.0,0.0001863,2]
[371547955,1752343854489,-2017.27,0.0001863,2]
[371547956,1752343854501,-460.0,0.0001863,2]
[371547957,1752343854512,-460.0,0.0001863,2]
[371547958,1752343854523,-460.0,0.0001863,2]
[371547959,1752343854535,-460.0,0.0001863,2]
[371547960,1752343854546,-492.69,0.0001863,2]
[371547961,1752343854556,-460.0,0.0001863,2]
[371547962,1752343854565,-317.88,0.0001863,2]
[371547963,1752343854575,-1338.44,0.0001863,2]
[371547964,1752343854586,-460.0,0.0001863,2]
[371547965,1752343854596,-460.0,0.0001863,2]
[371547966,1752343854606,-460.0,0.0001863,2]
[371547967,1752343854616,-460.0,0.0001863,2]
[371547968,1752343854625,-537.55,0.0001863,2]
[371547969,1752343854634,-460.0,0.0001863,2]
[371547970,1752343854644,-900.21,0.0001863,2]
[371547971,1752343854653,-460.0,0.0001863,2]
[371547972,1752343854663,-460.0,0.0001863,2]
[371547973,1752343854672,-217.74313642,0.00018667,2]
[371547974,1752343854681,-1242.42624994,0.00018728,2]
[371547975,1752343854690,-151.0,0.000189,2]
[371547976,1752343854700,-460.0,0.00018903,2]
[371547977,1752343854710,-460.0,0.00018903,2]
[371547978,1752343854719,-460.0,0.00018903,2]
[371547979,1752343854729,-839.23,0.00018903,2]
[371547980,1752343854739,-460.0,0.00018903,2]
[371547981,1752343854749,-460.0,0.00018903,2]
[371547982,1752343854759,-1342.89,0.00018903,2]
[371547983,1752343854769,-460.0,0.00018903,2]
[371547984,1752343854778,-719.25,0.00018903,2]
[371547985,1752343854788,-460.0,0.00018904,2]
[371547986,1752343854797,-636.13,0.00018904,2]
[371547987,1752343854806,-460.0,0.00018904,2]
[371547988,1752343854816,-460.0,0.00018904,2]
[371547989,1752343854825,-460.0,0.00018904,2]
[371547990,1752343854834,-460.0,0.00018904,2]
[371547991,1752343854844,-460.0,0.00018904,2]
[371547992,1752343854853,-460.0,0.00018904,2]
[371547993,1752343854863,-460.0,0.00018904,2]
[371547994,1752343854872,-460.0,0.00018904,2]
[371547995,1752343854882,-471.48,0.00018904,2]
[371547996,1752343854891,-463.2,0.00018904,2]
[371547997,1752343854903,-460.0,0.00018904,2]
[371547998,1752343854912,-460.0,0.00018904,2]
[371547999,1752343854922,-460.0,0.00018904,2]
[371548000,1752343854932,-460.0,0.00018904,2]
[371548001,1752343854943,-672.33,0.00018904,2]
[371548002,1752343854954,-1996.11,0.00018904,2]
[371548003,1752343854963,-460.0,0.00018904,2]
[371548004,1752343854972,-817.88,0.00018904,2]
[371548005,1752343854982,-460.0,0.00018904,2]
[371548006,1752343854991,-1069.87,0.00018904,2]
[371548007,1752343855001,-460.0,0.00018904,2]
[371548008,1752343855010,-460.0,0.00018904,2]
[371548009,1752343855019,-460.0,0.00018904,2]
[371548010,1752343855030,-1070.15,0.00018904,2]
[371548011,1752343855039,-460.0,0.00018904,2]
[371548012,1752343855049,-460.0,0.00018904,2]
[371548013,1752343855059,-460.0,0.00018904,2]
[371548014,1752343855069,-460.0,0.00018904,2]
[371548015,1752343855078,-644.92,0.00018904,2]
[371548016,1752343855088,-460.0,0.00018904,2]
[371548017,1752343855097,-460.0,0.00018904,2]
[371548018,1752343855107,-460.0,0.00018904,2]
[371548019,1752343855116,-1655.94,0.00018904,2]
[371548020,1752343855125,-460.0,0.00018904,2]
[371548021,1752343855134,-2017.27,0.00018904,2]
[371548022,1752343855143,-460.0,0.00018904,2]
[371548023,1752343855152,-460.0,0.00018904,2]
[371548024,1752343855162,-460.0,0.00018904,2]
[371548025,1752343855171,-460.0,0.00018904,2]
[371548026,1752343855180,-492.69,0.00018904,2]
[371548027,1752343855190,-460.0,0.00018904,2]
[371548028,1752343855199,-1338.44,0.00018904,2]
[371548029,1752343855209,-460.0,0.00018904,2]
[371548030,1752343855218,-460.0,0.00018904,2]
[371548031,1752343855228,-460.0,0.00018904,2]
[371548032,1752343855238,-460.0,0.00018904,2]
[371548033,1752343855247,-537.55,0.00018904,2]
[371548034,1752343855257,-460.0,0.00018904,2]
[371548035,1752343855267,-900.21,0.00018904,2]
[371548036,1752343855393,-460.0,0.00018904,2]
[371548037,1752343855403,-460.0,0.00018904,2]
[371548038,1752343855414,-1500.0,0.00018943,2]
[371548039,1752343855425,-483.444475,0.00018943,2]
[371548040,1752343855435,-1500.0,0.00018943,2]
[371548041,1752343855445,-1500.0,0.00018943,2]
[371548042,1752343855455,-288.26651023,0.00018972,2]
[371548043,1752343855464,-1242.42624994,0.00019003,2]
[371548044,1752343855474,-151.0,0.000191,2]
[371548045,1752343855487,-785.85987837,0.0001913,2]
[371548046,1752343855497,-500.0,0.00019173,2]
[371548047,1752343855507,-460.0,0.00019177,2]
[371548048,1752343855516,-460.0,0.00019177,2]
[371548049,1752343855526,-839.23,0.00019177,2]
[371548050,1752343855536,-460.0,0.00019177,2]
[371548051,1752343855546,-460.0,0.00019177,2]
[371548052,1752343855557,-1342.89,0.00019177,2]
[371548053,1752343855566,-460.0,0.00019177,2]
[371548054,1752343855575,-719.25,0.00019177,2]
[371548055,1752343855585,-500.0,0.00019177,2]
[371548056,1752343855595,-247.63501723,0.00019177,2]
[371548057,1752343855604,-500.0,0.00019177,2]
[371548058,1752343855613,-633.08921919,0.00019177,2]
[371548059,1752343855623,-460.0,0.00019178,2]
[371548060,1752343855633,-636.13,0.00019178,2]
[371548061,1752343855642,-460.0,0.00019178,2]
[371548062,1752343855652,-460.0,0.00019178,2]
[371548063,1752343855661,-460.0,0.00019178,2]
[371548064,1752343855671,-460.0,0.00019178,2]
[371548065,1752343855680,-460.0,0.00019178,2]
[371548066,1752343855691,-460.0,0.00019178,2]
[371548067,1752343855700,-460.0,0.00019178,2]
[371548068,1752343855710,-460.0,0.00019178,2]
[371548069,1752343855719,-471.48,0.00019178,2]
[371548070,1752343855730,-463.2,0.00019178,2]
[371548071,1752343855740,-460.0,0.00019178,2]
[371548072,1752343855749,-460.0,0.00019178,2]
[371548073,1752343855759,-460.0,0.00019178,2]
[371548074,1752343855768,-460.0,0.00019178,2]
[371548075,1752343855778,-672.33,0.00019178,2]
[371548076,1752343855787,-1996.11,0.00019178,2]
[371548077,1752343855797,-460.0,0.00019178,2]
[371548078,1752343855806,-817.88,0.00019178,2]
[371548079,1752343855816,-460.0,0.00019178,2]
[371548080,1752343855825,-1069.87,0.00019178,2]
[371548081,1752343855834,-460.0,0.00019178,2]
[371548082,1752343855843,-460.0,0.00019178,2]
[371548083,1752343855853,-460.0,0.00019178,2]
[371548084,1752343855862,-1070.15,0.00019178,2]
[371548085,1752343855871,-460.0,0.00019178,2]
[371548086,1752343855881,-460.0,0.00019178,2]
[371548087,1752343855890,-460.0,0.00019178,2]
[371548088,1752343855899,-644.92,0.00019178,2]
[371548089,1752343855909,-460.0,0.00019178,2]
[371548090,1752343855918,-460.0,0.00019178,2]
[371548091,1752343855928,-460.0,0.00019178,2]
[371548092,1752343855937,-1655.94,0.00019178,2]
[371548093,1752343855947,-460.0,0.00019178,2]
[371548094,1752343855956,-2017.27,0.00019178,2]
[371548095,1752343855965,-460.0,0.00019178,2]
[371548096,1752343855975,-505.5,0.00019178,2]
[371548097,1752343855986,-460.0,0.00019178,2]
[371548098,1752343855996,-460.0,0.00019178,2]
[371548099,1752343856006,-492.69,0.00019178,2]
[371548100,1752343856015,-426.69,0.00019178,2]
[371548101,1752343856025,-1338.44,0.00019178,2]
[371548102,1752343856034,-460.0,0.00019178,2]
[371548103,1752343856044,-460.0,0.00019178,2]
[371548104,1752343856053,-460.0,0.00019178,2]
[371548105,1752343856062,-460.0,0.00019178,2]
[371548106,1752343856075,-537.55,0.00019178,2]
[371548107,1752343856084,-460.0,0.00019178,2]
[371548108,1752343856094,-900.21,0.00019178,2]
[371548109,1752343856103,-460.0,0.00019178,2]
[371548110,1752343856113,-460.0,0.00019178,2]
[371548111,1752343856122,-48154.9889144,0.00019178,2]
[371548112,1752343856131,-666.0,0.00019178,2]
[371548113,1752343856141,-5000.0,0.00019178,2]
[371548114,1752343856150,-5000.0,0.00019178,2]
[371548115,1752343856159,-529.414383,0.00019178,2]
[371548116,1752343856169,-433.37,0.000192,2]
[371548117,1752343856179,-3371.35,0.000192,2]
[371548118,1752343856189,-26950.38,0.000192,2]
[371548119,1752343856199,-1242.42624994,0.00019279,2]
[371548120,1752343856209,-100000.0,0.00019329,2]
[371548121,1752343856219,-500.0,0.00019397,2]
[371548122,1752343856230,-151.0,0.00019397,2]
[371548123,1752343856239,-151.0,0.00019397,2]
[371548124,1752343856249,-151.0,0.00019397,2]
[371548125,1752343856259,-500.0,0.00019424,2]
[371548126,1752343856268,-151.0,0.00019424,2]
[371548127,1752343856278,-151.0,0.00019424,2]
[371548128,1752343856287,-460.0,0.00019451,2]
[371548129,1752343856297,-460.0,0.00019451,2]
[371548130,1752343856308,-839.23,0.00019451,2]
[371548131,1752343856317,-460.0,0.00019451,2]
[371548132,1752343856327,-460.0,0.00019451,2]
[371548133,1752343856337,-1342.89,0.00019451,2]
[371548134,1752343856350,-460.0,0.00019451,2]
[371548135,1752343856359,-719.25,0.00019451,2]
[371548136,1752343856369,-500.0,0.00019452,2]
[371548137,1752343856379,-198.0,0.00019452,2]
[371548138,1752343856394,-151.0,0.00019452,2]
[371548139,1752343856404,-460.0,0.00019452,2]
[371548140,1752343856414,-636.13,0.00019452,2]
[371548141,1752343856427,-151.0,0.00019452,2]
[371548142,1752343856438,-460.0,0.00019452,2]
[371548143,1752343856447,-550.20853849,0.00019452,2]
[371548144,1752343856457,-460.0,0.00019452,2]
[371548145,1752343856466,-460.0,0.00019452,2]
[371548146,1752343856476,-320.03788471,0.00019452,2]
[371548147,1752343856486,-460.0,0.00019452,2]
[371548148,1752343856496,-460.0,0.00019452,2]
[371548149,1752343856505,-460.0,0.00019452,2]
[371548150,1752343856515,-471.48,0.00019452,2]
[371548151,1752343856524,-463.2,0.00019452,2]
[371548152,1752343856534,-460.0,0.00019452,2]
[371548153,1752343856543,-460.0,0.00019452,2]
[371548154,1752343856552,-175.51,0.00019452,2]
[371548155,1752343856561,-460.0,0.00019452,2]
[371548156,1752343856571,-672.33,0.00019452,2]
[371548157,1752343856580,-1996.11,0.00019452,2]
[371548158,1752343856591,-460.0,0.00019452,2]
[371548159,1752343856600,-817.88,0.00019452,2]
[371548160,1752343856610,-460.0,0.00019452,2]
[371548161,1752343856619,-1069.87,0.00019452,2]
[371548162,1752343856629,-460.0,0.00019452,2]
[371548163,1752343856639,-460.0,0.00019452,2]
[371548164,1752343856648,-460.0,0.00019452,2]
[371548165,1752343856657,-1070.15,0.00019452,2]
[371548166,1752343856667,-460.0,0.00019452,2]
[371548167,1752343856676,-460.0,0.00019452,2]
[371548168,1752343856686,-460.0,0.00019452,2]
[371548169,1752343856696,-644.92,0.00019452,2]
[371548170,1752343856706,-460.0,0.00019452,2]
[371548171,1752343856715,-460.0,0.00019452,2]
[371548172,1752343856725,-460.0,0.00019452,2]
[371548173,1752343856735,-1655.94,0.00019452,2]
[371548174,1752343856744,-460.0,0.00019452,2]
[371548175,1752343856754,-2017.27,0.00019452,2]
[371548176,1752343856763,-460.0,0.00019452,2]
[371548177,1752343856773,-460.0,0.00019452,2]
[371548178,1752343856782,-460.0,0.00019452,2]
[371548179,1752343856791,-492.69,0.00019452,2]